[Event "Titled Tuesday Blitz June 20 Early 2023"]
[White "Samaganova, Aleksandra"]
[Black "Better_Chess_Faster"]
[WhiteFideId "13800221"]
[WhiteElo "1858"]
[BlackElo "2003"]
[Result "1-0"]
[Round "3"]
[TimeControl "180+2"]
[Date "2023.06.20"]
[WhiteClock "0:00:05"]
[BlackClock "0:00:05"]
[Board "239"]

1. c4 {[%clk 0:03:00]}  c5 {[%clk 0:02:58]} 2. Nc3 {[%clk 0:02:56]}  Nf6 {[%clk 0:02:56]} 3. Nf3 {[%clk 0:02:56]}  Nc6 {[%clk 0:02:54]} 4. e3 {[%clk 0:02:56]}  e6 {[%clk 0:02:54]} 5. d4 {[%clk 0:02:56]}  cxd4 {[%clk 0:02:53]} 6. exd4 {[%clk 0:02:55]}  d5 {[%clk 0:02:53]} 7. cxd5 {[%clk 0:02:55]}  Nxd5 {[%clk 0:02:52]} 8. Bd3 {[%clk 0:02:55]}  Be7 {[%clk 0:02:51]} 9. O-O {[%clk 0:02:55]}  O-O {[%clk 0:02:50]} 10. Re1 {[%clk 0:02:55]}  Bf6 {[%clk 0:02:48]} 11. Be4 {[%clk 0:02:45]}  Ndb4 {[%clk 0:02:46]} 12. a3 {[%clk 0:02:37]}  Na6 {[%clk 0:02:42]} 13. Be3 {[%clk 0:02:32]}  Nc7 {[%clk 0:02:40]} 14. Qc2 {[%clk 0:02:21]}  g6 {[%clk 0:02:38]} 15. Rad1 {[%clk 0:02:20]}  Bd7 {[%clk 0:02:36]} 16. d5 {[%clk 0:02:05]}  Nxd5 {[%clk 0:02:36]} 17. Nxd5 {[%clk 0:02:05]}  exd5 {[%clk 0:02:36]} 18. Bxd5 {[%clk 0:02:04]}  Rc8 {[%clk 0:02:33]} 19. Qb1 {[%clk 0:01:46]}  Qc7 {[%clk 0:02:32]} 20. h3 {[%clk 0:01:41]}  Bf5 {[%clk 0:02:29]} 21. Qa2 {[%clk 0:01:35]}  a6 {[%clk 0:02:18]} 22. b4 {[%clk 0:01:21]}  Ne5 {[%clk 0:02:13]} 23. Bc5 {[%clk 0:01:01]}  Nxf3+ {[%clk 0:02:08]} 24. Bxf3 {[%clk 0:01:01]}  Rfe8 {[%clk 0:02:04]} 25. Rxe8+ {[%clk 0:00:38]}  Rxe8 {[%clk 0:02:03]} 26. Bd6 {[%clk 0:00:27]}  Qb6 {[%clk 0:01:56]} 27. Bg3 {[%clk 0:00:26]}  Be6 {[%clk 0:01:52]} 28. Qb1 {[%clk 0:00:25]}  Rd8 {[%clk 0:01:48]} 29. Qc2 {[%clk 0:00:22]}  Bf5 {[%clk 0:01:36]} 30. Qc1 {[%clk 0:00:20]}  Rxd1+ {[%clk 0:01:31]} 31. Qxd1 {[%clk 0:00:20]}  Bd4 {[%clk 0:01:26]} 32. Qd2 {[%clk 0:00:14]}  Kg7 {[%clk 0:01:16]} 33. Kh2 {[%clk 0:00:14]}  Bf6 {[%clk 0:01:12]} 34. Bf4 {[%clk 0:00:12]}  h5 {[%clk 0:01:10]} 35. Bg3 {[%clk 0:00:10]}  Be6 {[%clk 0:01:02]} 36. Bf4 {[%clk 0:00:04]}  Qb5 {[%clk 0:00:58]} 37. Bh6+ {[%clk 0:00:04]}  Kh7 {[%clk 0:00:58]} 38. Be3 {[%clk 0:00:05]}  Be5+ {[%clk 0:00:53]} 39. g3 {[%clk 0:00:04]}  h4 {[%clk 0:00:43]} 40. Kg2 {[%clk 0:00:03]}  hxg3 {[%clk 0:00:39]} 41. fxg3 {[%clk 0:00:04]}  b6 {[%clk 0:00:25]} 42. h4 {[%clk 0:00:04]}  a5 {[%clk 0:00:19]} 43. Bf2 {[%clk 0:00:05]}  axb4 {[%clk 0:00:18]} 44. Qxb4 {[%clk 0:00:05]}  Qxb4 {[%clk 0:00:16]} 45. axb4 {[%clk 0:00:06]}  b5 {[%clk 0:00:15]} 46. Bc6 {[%clk 0:00:04]}  Bc4 {[%clk 0:00:14]} 47. Bc5 {[%clk 0:00:05]}  Bc3 {[%clk 0:00:14]} 48. Kf3 {[%clk 0:00:05]}  Kg7 {[%clk 0:00:14]} 49. g4 {[%clk 0:00:05]}  Be1 {[%clk 0:00:12]} 50. h5 {[%clk 0:00:05]}  gxh5 {[%clk 0:00:12]} 51. gxh5 {[%clk 0:00:06]}  Bc3 {[%clk 0:00:12]} 52. Kg4 {[%clk 0:00:04]}  Be2+ {[%clk 0:00:12]} 53. Kh4 {[%clk 0:00:05]}  Kh6 {[%clk 0:00:11]} 54. Be3+ {[%clk 0:00:04]}  Kh7 {[%clk 0:00:10]} 55. Be4+ {[%clk 0:00:03]}  Kg7 {[%clk 0:00:10]} 56. h6+ {[%clk 0:00:04]}  Kh8 {[%clk 0:00:10]} 57. h7 {[%clk 0:00:04]}  Bxb4 {[%clk 0:00:08]} 58. Bd4+ {[%clk 0:00:04]}  f6 {[%clk 0:00:05]} 59. Bxf6# {[%clk 0:00:05]} 1-0


[Site "https://www.chess.com"]

[Event "Titled Tuesday Blitz June 20 Early 2023"]
[White "mestrefeitosa19"]
[Black "Lohani, Sujana"]
[BlackFideId "12311987"]
[WhiteElo "2305"]
[BlackElo "1718"]
[Result "1-0"]
[Round "3"]
[TimeControl "180+2"]
[Date "2023.06.20"]
[WhiteClock "0:00:04"]
[BlackClock "0:00:00"]
[Board "240"]

1. c4 {[%clk 0:03:00]}  c5 {[%clk 0:02:51]} 2. Nc3 {[%clk 0:03:00]}  Nc6 {[%clk 0:02:49]} 3. Nf3 {[%clk 0:03:01]}  Nf6 {[%clk 0:02:48]} 4. d4 {[%clk 0:02:57]}  cxd4 {[%clk 0:02:47]} 5. Nxd4 {[%clk 0:02:58]}  g6 {[%clk 0:02:45]} 6. e4 {[%clk 0:02:55]}  Bg7 {[%clk 0:02:43]} 7. Be2 {[%clk 0:02:52]}  O-O {[%clk 0:02:43]} 8. O-O {[%clk 0:02:52]}  Qc7 {[%clk 0:02:35]} 9. Be3 {[%clk 0:02:50]}  Qe5 {[%clk 0:02:30]} 10. f4 {[%clk 0:02:35]}  Qc5 {[%clk 0:02:16]} 11. Nf5 {[%clk 0:02:09]}  Qb4 {[%clk 0:02:10]} 12. Nxg7 {[%clk 0:01:45]}  Kxg7 {[%clk 0:02:10]} 13. Nd5 {[%clk 0:01:37]}  Qxb2 {[%clk 0:02:00]} 14. e5 {[%clk 0:01:16]}  Ne4 {[%clk 0:01:52]} 15. e6 {[%clk 0:01:07]}  dxe6 {[%clk 0:01:43]} 16. Nxe7 {[%clk 0:01:04]}  Nc3 {[%clk 0:01:28]} 17. Bd4+ {[%clk 0:00:55]}  Nxd4 {[%clk 0:01:28]} 18. Qxd4+ {[%clk 0:00:56]}  f6 {[%clk 0:01:09]} 19. Bf3 {[%clk 0:00:56]}  Ne2+ {[%clk 0:01:05]} 20. Bxe2 {[%clk 0:00:56]}  Qxd4+ {[%clk 0:01:04]} 21. Kh1 {[%clk 0:00:47]}  Qc5 {[%clk 0:00:57]} 22. Nxc8 {[%clk 0:00:45]}  Raxc8 {[%clk 0:00:57]} 23. Bf3 {[%clk 0:00:44]}  Rc7 {[%clk 0:00:56]} 24. Rfc1 {[%clk 0:00:43]}  Rd8 {[%clk 0:00:55]} 25. h3 {[%clk 0:00:41]}  Rd4 {[%clk 0:00:48]} 26. Be2 {[%clk 0:00:41]}  Rxf4 {[%clk 0:00:46]} 27. Rab1 {[%clk 0:00:41]}  Rf2 {[%clk 0:00:45]} 28. Bg4 {[%clk 0:00:38]}  Qe5 {[%clk 0:00:39]} 29. Re1 {[%clk 0:00:35]}  Qg3 {[%clk 0:00:38]} 30. Bf3 {[%clk 0:00:33]}  e5 {[%clk 0:00:38]} 31. Re3 {[%clk 0:00:26]}  Qf4 {[%clk 0:00:33]} 32. Reb3 {[%clk 0:00:24]}  b6 {[%clk 0:00:33]} 33. Rd1 {[%clk 0:00:21]}  Qxc4 {[%clk 0:00:31]} 34. Rbd3 {[%clk 0:00:20]}  Kh6 {[%clk 0:00:30]} 35. Kh2 {[%clk 0:00:20]}  Qxa2 {[%clk 0:00:30]} 36. Re3 {[%clk 0:00:19]}  Rcc2 {[%clk 0:00:29]} 37. Rg1 {[%clk 0:00:16]}  Qb2 {[%clk 0:00:19]} 38. Re4 {[%clk 0:00:16]}  Qc3 {[%clk 0:00:18]} 39. Rh4+ {[%clk 0:00:15]}  Kg7 {[%clk 0:00:18]} 40. Ba8 {[%clk 0:00:13]}  Qe3 {[%clk 0:00:16]} 41. Re4 {[%clk 0:00:13]}  Qc3 {[%clk 0:00:15]} 42. Ree1 {[%clk 0:00:09]}  g5 {[%clk 0:00:14]} 43. Rd1 {[%clk 0:00:10]}  Rfd2 {[%clk 0:00:13]} 44. Rdf1 {[%clk 0:00:09]}  h5 {[%clk 0:00:12]} 45. Rf5 {[%clk 0:00:10]}  g4 {[%clk 0:00:12]} 46. hxg4 {[%clk 0:00:09]}  hxg4 {[%clk 0:00:12]} 47. Rgf1 {[%clk 0:00:09]}  g3+ {[%clk 0:00:11]} 48. Kh3 {[%clk 0:00:06]}  Rd6 {[%clk 0:00:11]} 49. Rh5 {[%clk 0:00:06]}  Qe3 {[%clk 0:00:09]} 50. Rh4 {[%clk 0:00:05]}  Qg5 {[%clk 0:00:09]} 51. Rg4 {[%clk 0:00:05]}  Rc4 {[%clk 0:00:08]} 52. Rxg5+ {[%clk 0:00:05]}  fxg5 {[%clk 0:00:08]} 53. Kxg3 {[%clk 0:00:05]}  Rd3+ {[%clk 0:00:07]} 54. Kh2 {[%clk 0:00:04]}  Rh4+ {[%clk 0:00:07]} 55. Kg1 {[%clk 0:00:05]}  Rf4 {[%clk 0:00:07]} 56. Re1 {[%clk 0:00:04]}  e4 {[%clk 0:00:06]} 57. Bxe4 {[%clk 0:00:03]}  Rxe4 {[%clk 0:00:05]} 58. Rxe4 {[%clk 0:00:03]}  Rd2 {[%clk 0:00:05]} 59. Re7+ {[%clk 0:00:04]}  Kg6 {[%clk 0:00:05]} 60. Rxa7 {[%clk 0:00:04]}  Rd6 {[%clk 0:00:05]} 61. Rb7 {[%clk 0:00:03]}  Kf5 {[%clk 0:00:05]} 62. Kh2 {[%clk 0:00:04]}  Ke4 {[%clk 0:00:04]} 63. Re7+ {[%clk 0:00:04]}  Kf4 {[%clk 0:00:04]} 64. Rf7+ {[%clk 0:00:05]}  Kg4 {[%clk 0:00:04]} 65. Rb7 {[%clk 0:00:05]}  Re6 {[%clk 0:00:03]} 66. Rc7 {[%clk 0:00:05]}  Kf4 {[%clk 0:00:04]} 67. Rc4+ {[%clk 0:00:05]}  Ke3 {[%clk 0:00:04]} 68. Rb4 {[%clk 0:00:05]}  g4 {[%clk 0:00:03]} 69. Kg3 {[%clk 0:00:05]}  Re5 {[%clk 0:00:02]} 70. Rb3+ {[%clk 0:00:04]}  Ke4 {[%clk 0:00:02]} 71. Rxb6 {[%clk 0:00:05]}  Kf5 {[%clk 0:00:02]} 72. Rb4 {[%clk 0:00:05]}  Kg5 {[%clk 0:00:03]} 73. Rxg4+ {[%clk 0:00:04]}  Kf5 {[%clk 0:00:03]} 74. Rf4+ {[%clk 0:00:04]}  Kg5 {[%clk 0:00:03]} 75. Ra4 {[%clk 0:00:04]}  Kf5 {[%clk 0:00:03]} 76. Rb4 {[%clk 0:00:03]}  Kg5 {[%clk 0:00:03]} 77. Kh3 {[%clk 0:00:04]}  Kf5 {[%clk 0:00:03]} 78. Rh4 {[%clk 0:00:04]}  Kg5 {[%clk 0:00:03]} 79. Rh8 {[%clk 0:00:04]}  Kf5 {[%clk 0:00:02]} 80. Rg8 {[%clk 0:00:04]}  Re6 {[%clk 0:00:00]} 81. g4+ {[%clk 0:00:04]} 1-0


[Site "https://www.chess.com"]

[Event "Titled Tuesday Blitz June 20 Early 2023"]
[White "Skiadopoulos, Nikolaos"]
[Black "MunichMouse"]
[WhiteFideId "4200772"]
[WhiteElo "2022"]
[BlackElo "2303"]
[Result "1/2-1/2"]
[Round "3"]
[TimeControl "180+2"]
[Date "2023.06.20"]
[WhiteClock "0:00:15"]
[BlackClock "0:00:50"]
[Board "241"]

1. b4 {[%clk 0:03:00]}  e5 {[%clk 0:02:53]} 2. Bb2 {[%clk 0:03:00]}  Bxb4 {[%clk 0:02:52]} 3. Bxe5 {[%clk 0:02:59]}  Nf6 {[%clk 0:02:53]} 4. c4 {[%clk 0:02:57]}  O-O {[%clk 0:02:53]} 5. a3 {[%clk 0:02:57]}  Nc6 {[%clk 0:02:52]} 6. Bc3 {[%clk 0:02:48]}  Be7 {[%clk 0:02:50]} 7. Nf3 {[%clk 0:02:40]}  d5 {[%clk 0:02:50]} 8. e3 {[%clk 0:02:37]}  Bg4 {[%clk 0:02:44]} 9. Be2 {[%clk 0:02:37]}  dxc4 {[%clk 0:02:34]} 10. O-O {[%clk 0:02:34]}  b5 {[%clk 0:02:29]} 11. h3 {[%clk 0:02:32]}  Bf5 {[%clk 0:02:27]} 12. Bxf6 {[%clk 0:02:20]}  Bxf6 {[%clk 0:02:27]} 13. Nc3 {[%clk 0:02:17]}  a6 {[%clk 0:02:26]} 14. Ra2 {[%clk 0:01:45]}  Bd3 {[%clk 0:02:24]} 15. Ne1 {[%clk 0:01:40]}  Bxe2 {[%clk 0:02:08]} 16. Nxe2 {[%clk 0:01:33]}  Ne5 {[%clk 0:02:07]} 17. f4 {[%clk 0:01:28]}  Nd3 {[%clk 0:02:06]} 18. Nxd3 {[%clk 0:01:28]}  Qxd3 {[%clk 0:02:06]} 19. Nc1 {[%clk 0:01:23]}  Qe4 {[%clk 0:02:03]} 20. Qe2 {[%clk 0:01:02]}  Rad8 {[%clk 0:02:01]} 21. g4 {[%clk 0:00:58]}  Rfe8 {[%clk 0:01:57]} 22. g5 {[%clk 0:00:57]}  Bd4 {[%clk 0:01:54]} 23. Qg4 {[%clk 0:00:54]}  Bc5 {[%clk 0:01:50]} 24. Kh2 {[%clk 0:00:48]}  Rd5 {[%clk 0:01:38]} 25. Qg2 {[%clk 0:00:35]}  Qxg2+ {[%clk 0:01:34]} 26. Kxg2 {[%clk 0:00:35]}  Red8 {[%clk 0:01:35]} 27. Rf2 {[%clk 0:00:34]}  g6 {[%clk 0:01:27]} 28. Kf3 {[%clk 0:00:33]}  f5 {[%clk 0:01:18]} 29. h4 {[%clk 0:00:29]}  a5 {[%clk 0:01:09]} 30. Rc2 {[%clk 0:00:26]}  a4 {[%clk 0:01:09]} 31. d4 {[%clk 0:00:23]}  Bxa3 {[%clk 0:01:00]} 32. Na2 {[%clk 0:00:19]}  c5 {[%clk 0:00:57]} 33. Nc3 {[%clk 0:00:19]}  cxd4 {[%clk 0:00:57]} 34. Nxd5 {[%clk 0:00:18]}  Rxd5 {[%clk 0:00:56]} 35. exd4 {[%clk 0:00:19]}  Rxd4 {[%clk 0:00:56]} 36. Rfe2 {[%clk 0:00:19]}  Bc5 {[%clk 0:00:54]} 37. h5 {[%clk 0:00:18]}  Rd3+ {[%clk 0:00:54]} 38. Kg2 {[%clk 0:00:18]}  Bd6 {[%clk 0:00:53]} 39. hxg6 {[%clk 0:00:17]}  hxg6 {[%clk 0:00:53]} 40. Re6 {[%clk 0:00:16]}  Kf7 {[%clk 0:00:53]} 41. Rf6+ {[%clk 0:00:15]}  Kg7 {[%clk 0:00:53]} 42. Re2 {[%clk 0:00:16]}  c3 {[%clk 0:00:52]} 43. Ree6 {[%clk 0:00:16]}  c2 {[%clk 0:00:51]} 44. Rxg6+ {[%clk 0:00:16]}  Kf7 {[%clk 0:00:50]} 45. Rgf6+ {[%clk 0:00:15]}  Kg7 {[%clk 0:00:51]} 46. Rg6+ {[%clk 0:00:15]}  Kf7 {[%clk 0:00:50]} 47. Rgf6+ {[%clk 0:00:15]}  Kg7 {[%clk 0:00:50]} 48. Rg6+ {[%clk 0:00:15]} 1/2-1/2


[Site "https://www.chess.com"]

[Event "Titled Tuesday Blitz June 20 Early 2023"]
[White "Sjugirov, Sanan"]
[Black "Carlsen, Magnus"]
[WhiteFideId "4189302"]
[BlackFideId "1503014"]
[WhiteElo "2569"]
[BlackElo "2858"]
[Result "0-1"]
[Round "4"]
[TimeControl "180+2"]
[Date "2023.06.20"]
[WhiteClock "0:00:00"]
[BlackClock "0:00:19"]
[Board "1"]

1. e4 {[%clk 0:03:00]}  d5 {[%clk 0:02:59]} 2. exd5 {[%clk 0:03:00]}  Qxd5 {[%clk 0:03:00]} 3. Nc3 {[%clk 0:03:00]}  Qd6 {[%clk 0:03:00]} 4. d4 {[%clk 0:02:59]}  Nf6 {[%clk 0:03:00]} 5. Nf3 {[%clk 0:02:58]}  a6 {[%clk 0:03:00]} 6. g3 {[%clk 0:02:52]}  b5 {[%clk 0:02:56]} 7. Bg2 {[%clk 0:02:39]}  Bb7 {[%clk 0:02:56]} 8. O-O {[%clk 0:02:36]}  e6 {[%clk 0:02:55]} 9. Bf4 {[%clk 0:02:19]}  Qb6 {[%clk 0:02:53]} 10. a4 {[%clk 0:02:14]}  b4 {[%clk 0:02:52]} 11. a5 {[%clk 0:02:14]}  Qa7 {[%clk 0:02:52]} 12. Na4 {[%clk 0:02:12]}  Nbd7 {[%clk 0:02:50]} 13. Bxc7 {[%clk 0:02:01]}  Rc8 {[%clk 0:02:50]} 14. Bf4 {[%clk 0:01:17]}  Be7 {[%clk 0:02:49]} 15. Ne5 {[%clk 0:00:40]}  Bxg2 {[%clk 0:02:30]} 16. Kxg2 {[%clk 0:00:41]}  O-O {[%clk 0:02:30]} 17. Nxd7 {[%clk 0:00:41]}  Qxd7 {[%clk 0:02:12]} 18. Nb6 {[%clk 0:00:39]}  Qc6+ {[%clk 0:02:06]} 19. Kg1 {[%clk 0:00:39]}  Rcd8 {[%clk 0:01:52]} 20. Qd3 {[%clk 0:00:37]}  Nd5 {[%clk 0:01:37]} 21. Be3 {[%clk 0:00:18]}  h5 {[%clk 0:01:13]} 22. c4 {[%clk 0:00:15]}  bxc3 {[%clk 0:01:12]} 23. bxc3 {[%clk 0:00:05]}  Qxc3 {[%clk 0:00:58]} 24. Rfd1 {[%clk 0:00:05]}  Qxd3 {[%clk 0:00:54]} 25. Rxd3 {[%clk 0:00:06]}  h4 {[%clk 0:00:47]} 26. Kg2 {[%clk 0:00:06]}  Rd6 {[%clk 0:00:48]} 27. Rb3 {[%clk 0:00:05]}  Bf6 {[%clk 0:00:44]} 28. Rc1 {[%clk 0:00:04]}  Rfd8 {[%clk 0:00:33]} 29. Rc4 {[%clk 0:00:02]}  Kh7 {[%clk 0:00:30]} 30. Kf3 {[%clk 0:00:01]}  Kg6 {[%clk 0:00:30]} 31. Kg2 {[%clk 0:00:01]}  Ne7 {[%clk 0:00:27]} 32. Rc2 {[%clk 0:00:01]}  Nf5 {[%clk 0:00:23]} 33. Nc4 {[%clk 0:00:02]}  Rd5 {[%clk 0:00:23]} 34. g4 {[%clk 0:00:01]}  Nxd4 {[%clk 0:00:22]} 35. Bxd4 {[%clk 0:00:02]}  Rxd4 {[%clk 0:00:23]} 36. h3 {[%clk 0:00:02]}  R8d5 {[%clk 0:00:22]} 37. Ne3 {[%clk 0:00:02]}  Rxa5 {[%clk 0:00:21]} 38. Rb7 {[%clk 0:00:02]}  Bg5 {[%clk 0:00:18]} 39. Rcc7 {[%clk 0:00:02]}  Bxe3 {[%clk 0:00:18]} 40. fxe3 {[%clk 0:00:01]}  Rd2+ {[%clk 0:00:18]} 41. Kf3 {[%clk 0:00:00]}  Raa2 {[%clk 0:00:19]} 0-1


[Site "https://www.chess.com"]

[Event "Titled Tuesday Blitz June 20 Early 2023"]
[White "Nakamura, Hikaru"]
[Black "Baskakov, Egor"]
[WhiteFideId "2016192"]
[BlackFideId "24197866"]
[WhiteElo "2874"]
[BlackElo "2225"]
[Result "1-0"]
[Round "4"]
[TimeControl "180+2"]
[Date "2023.06.20"]
[WhiteClock "0:01:24"]
[BlackClock "0:01:24"]
[Board "2"]

1. Nf3 {[%clk 0:03:00]}  Nf6 {[%clk 0:02:59]} 2. b3 {[%clk 0:03:00]}  e6 {[%clk 0:02:59]} 3. Bb2 {[%clk 0:03:01]}  d5 {[%clk 0:03:00]} 4. e3 {[%clk 0:03:00]}  Be7 {[%clk 0:03:00]} 5. c4 {[%clk 0:03:01]}  O-O {[%clk 0:03:01]} 6. d4 {[%clk 0:02:59]}  Ne4 {[%clk 0:02:57]} 7. Bd3 {[%clk 0:02:56]}  f5 {[%clk 0:02:57]} 8. O-O {[%clk 0:02:55]}  c6 {[%clk 0:02:57]} 9. Ba3 {[%clk 0:02:56]}  Bd7 {[%clk 0:02:57]} 10. Bxe7 {[%clk 0:02:53]}  Qxe7 {[%clk 0:02:58]} 11. a4 {[%clk 0:02:42]}  Be8 {[%clk 0:02:58]} 12. Ne5 {[%clk 0:02:39]}  Nd7 {[%clk 0:02:58]} 13. Nxd7 {[%clk 0:02:38]}  Qxd7 {[%clk 0:02:57]} 14. Nd2 {[%clk 0:02:38]}  Nxd2 {[%clk 0:02:54]} 15. Qxd2 {[%clk 0:02:38]}  g5 {[%clk 0:02:54]} 16. b4 {[%clk 0:02:36]}  f4 {[%clk 0:02:49]} 17. exf4 {[%clk 0:02:18]}  Rxf4 {[%clk 0:02:43]} 18. g3 {[%clk 0:02:18]}  Rxd4 {[%clk 0:02:39]} 19. Bxh7+ {[%clk 0:02:16]}  Qxh7 {[%clk 0:02:40]} 20. Qxd4 {[%clk 0:02:16]}  Bg6 {[%clk 0:02:39]} 21. cxd5 {[%clk 0:02:14]}  cxd5 {[%clk 0:02:39]} 22. Rac1 {[%clk 0:02:12]}  Rf8 {[%clk 0:02:36]} 23. Qe5 {[%clk 0:02:12]}  Bf5 {[%clk 0:02:34]} 24. Rc7 {[%clk 0:02:11]}  Qh6 {[%clk 0:02:32]} 25. Rfc1 {[%clk 0:02:10]}  Be4 {[%clk 0:02:31]} 26. Rc8 {[%clk 0:02:06]}  g4 {[%clk 0:02:19]} 27. Rxf8+ {[%clk 0:02:00]}  Kxf8 {[%clk 0:02:20]} 28. Rc8+ {[%clk 0:01:47]}  Kf7 {[%clk 0:02:20]} 29. Rc7+ {[%clk 0:01:45]}  Kf8 {[%clk 0:02:15]} 30. h4 {[%clk 0:01:40]}  gxh3 {[%clk 0:02:12]} 31. Kh2 {[%clk 0:01:40]}  Kg8 {[%clk 0:01:24]} 32. Rxb7 {[%clk 0:01:24]} 1-0


[Site "https://www.chess.com"]

[Event "Titled Tuesday Blitz June 20 Early 2023"]
[White "Sadhwani, Raunak"]
[Black "Galchenko, Matvey"]
[WhiteFideId "35093487"]
[BlackFideId "24175480"]
[WhiteElo "2631"]
[BlackElo "2423"]
[Result "1-0"]
[Round "4"]
[TimeControl "180+2"]
[Date "2023.06.20"]
[WhiteClock "0:01:43"]
[BlackClock "0:00:09"]
[Board "6"]

1. c4 {[%clk 0:03:00]}  e6 {[%clk 0:02:55]} 2. Nf3 {[%clk 0:03:00]}  d5 {[%clk 0:02:55]} 3. e3 {[%clk 0:03:00]}  Nf6 {[%clk 0:02:55]} 4. b3 {[%clk 0:03:01]}  dxc4 {[%clk 0:02:55]} 5. Bxc4 {[%clk 0:02:59]}  a6 {[%clk 0:02:54]} 6. a4 {[%clk 0:02:57]}  c5 {[%clk 0:02:46]} 7. Bb2 {[%clk 0:02:57]}  Nc6 {[%clk 0:02:47]} 8. O-O {[%clk 0:02:57]}  Bd6 {[%clk 0:02:45]} 9. d4 {[%clk 0:02:57]}  O-O {[%clk 0:02:44]} 10. dxc5 {[%clk 0:02:57]}  Bxc5 {[%clk 0:02:45]} 11. Nbd2 {[%clk 0:02:56]}  Qe7 {[%clk 0:02:44]} 12. Rc1 {[%clk 0:02:52]}  e5 {[%clk 0:02:24]} 13. Qc2 {[%clk 0:02:46]}  Bd6 {[%clk 0:01:50]} 14. Rfd1 {[%clk 0:02:29]}  Bg4 {[%clk 0:01:46]} 15. Ne4 {[%clk 0:02:29]}  Rad8 {[%clk 0:01:16]} 16. Ng3 {[%clk 0:02:10]}  g6 {[%clk 0:00:51]} 17. h3 {[%clk 0:02:05]}  Bxf3 {[%clk 0:00:48]} 18. gxf3 {[%clk 0:02:06]}  Bb8 {[%clk 0:00:39]} 19. Qb1 {[%clk 0:01:57]}  Rxd1+ {[%clk 0:00:33]} 20. Rxd1 {[%clk 0:01:58]}  Rd8 {[%clk 0:00:33]} 21. Rxd8+ {[%clk 0:01:56]}  Qxd8 {[%clk 0:00:34]} 22. Qd3 {[%clk 0:01:53]}  Qxd3 {[%clk 0:00:33]} 23. Bxd3 {[%clk 0:01:54]}  Na5 {[%clk 0:00:33]} 24. Bc2 {[%clk 0:01:53]}  Nd5 {[%clk 0:00:31]} 25. Ba3 {[%clk 0:01:43]}  f5 {[%clk 0:00:26]} 26. b4 {[%clk 0:01:42]}  Bd6 {[%clk 0:00:18]} 27. bxa5 {[%clk 0:01:42]}  Bxa3 {[%clk 0:00:09]} 28. Bb3 {[%clk 0:01:43]} 1-0


[Site "https://www.chess.com"]

[Event "Titled Tuesday Blitz June 20 Early 2023"]
[White "Grischuk, Alexander"]
[Black "Kravtsiv, Martyn"]
[WhiteFideId "4126025"]
[BlackFideId "14113147"]
[WhiteElo "2721"]
[BlackElo "2695"]
[Result "1-0"]
[Round "4"]
[TimeControl "180+2"]
[Date "2023.06.20"]
[WhiteClock "0:00:04"]
[BlackClock "0:00:00"]
[Board "9"]

1. d4 {[%clk 0:03:00]}  d5 {[%clk 0:02:59]} 2. Nf3 {[%clk 0:03:01]}  Nf6 {[%clk 0:02:57]} 3. Bg5 {[%clk 0:03:01]}  Ne4 {[%clk 0:02:52]} 4. Bh4 {[%clk 0:03:01]}  g6 {[%clk 0:02:51]} 5. c4 {[%clk 0:02:56]}  c6 {[%clk 0:02:46]} 6. e3 {[%clk 0:02:54]}  Bg7 {[%clk 0:02:45]} 7. Nc3 {[%clk 0:02:42]}  Qa5 {[%clk 0:02:39]} 8. Qb3 {[%clk 0:02:37]}  Nxc3 {[%clk 0:02:16]} 9. bxc3 {[%clk 0:02:32]}  b6 {[%clk 0:02:11]} 10. cxd5 {[%clk 0:02:31]}  cxd5 {[%clk 0:02:06]} 11. Bb5+ {[%clk 0:02:24]}  Bd7 {[%clk 0:02:06]} 12. a4 {[%clk 0:02:25]}  Bxb5 {[%clk 0:01:55]} 13. Qxb5+ {[%clk 0:02:24]}  Nd7 {[%clk 0:01:56]} 14. Ke2 {[%clk 0:02:08]}  Rc8 {[%clk 0:01:54]} 15. Rhb1 {[%clk 0:01:08]}  e5 {[%clk 0:00:48]} 16. Qxa5 {[%clk 0:01:07]}  bxa5 {[%clk 0:00:47]} 17. Rb5 {[%clk 0:00:49]}  Rxc3 {[%clk 0:00:43]} 18. Rxd5 {[%clk 0:00:48]}  exd4 {[%clk 0:00:39]} 19. Nxd4 {[%clk 0:00:42]}  Bxd4 {[%clk 0:00:35]} 20. Rxd4 {[%clk 0:00:37]}  Rc2+ {[%clk 0:00:28]} 21. Kf1 {[%clk 0:00:36]}  f6 {[%clk 0:00:25]} 22. Rb1 {[%clk 0:00:28]}  Rc7 {[%clk 0:00:22]} 23. Bg3 {[%clk 0:00:27]}  Rc8 {[%clk 0:00:17]} 24. Rb7 {[%clk 0:00:26]}  Nc5 {[%clk 0:00:17]} 25. Rxa7 {[%clk 0:00:26]}  O-O {[%clk 0:00:17]} 26. Bd6 {[%clk 0:00:23]}  Nb3 {[%clk 0:00:14]} 27. Bxf8 {[%clk 0:00:12]}  Nxd4 {[%clk 0:00:14]} 28. exd4 {[%clk 0:00:12]}  Kxf8 {[%clk 0:00:14]} 29. Rxa5 {[%clk 0:00:12]}  Rc4 {[%clk 0:00:15]} 30. d5 {[%clk 0:00:12]}  Ke7 {[%clk 0:00:15]} 31. Ra7+ {[%clk 0:00:10]}  Kd6 {[%clk 0:00:15]} 32. Rxh7 {[%clk 0:00:11]}  Rxa4 {[%clk 0:00:14]} 33. Rh6 {[%clk 0:00:09]}  Ra1+ {[%clk 0:00:06]} 34. Ke2 {[%clk 0:00:09]}  Ra2+ {[%clk 0:00:07]} 35. Kf3 {[%clk 0:00:09]}  Ra3+ {[%clk 0:00:07]} 36. Kf4 {[%clk 0:00:07]}  Ra2 {[%clk 0:00:07]} 37. Kg3 {[%clk 0:00:05]}  Kxd5 {[%clk 0:00:03]} 38. Rxg6 {[%clk 0:00:05]}  Ke5 {[%clk 0:00:04]} 39. h4 {[%clk 0:00:05]}  f5 {[%clk 0:00:04]} 40. f4+ {[%clk 0:00:04]}  Ke4 {[%clk 0:00:03]} 41. Re6+ {[%clk 0:00:05]}  Kd4 {[%clk 0:00:00]} 42. Re5 {[%clk 0:00:04]} 1-0


[Site "https://www.chess.com"]